Workbook

Sheet CDKOHSL (hidden)

Sheet 说明
A1: 工程量清单说明
A2: 1. 招标清单中所列工程数量是估算或设计的预计数量，仅作为投标的共同基础，除有另行规定外不能作为最终结算与支付的依据。实际支付应按经甲方确认的实际完成工程量进行计量结算。
A3: 2. 合同单价为固定综合单价，正常情况下不作调整。综合单价中已经包含为实施和完成合同工程所需的劳务费、材料费（甲方提供材料除外）、机械、质检（自检）、安装费、缺陷修复、措施费、管理费、规费、施工辅助费、保险、利润、水电费、所有材料设备装卸运输费、二次倒运费、小型临时设施费用、冬雨季及夜间施工措施费、进出场费、工程检测试验费用、迎检费用、标准化施工费、已完工程及设备保护费、场地清理费、各种培训费用、除增值税以外的其他税金，地方收取的各种费用等以及为完成该项工程协议明示或暗示的所有责任、义务和一切风险的费用。
A4: 3. 施工内容包含但不限于施工交验合格的成品、施工后现场整形及养护、成品保护、施工质量检验所要求的检测、取样、试验、测量、资料编制等内容，图纸、技术规范、施工现场及图集规范要求的全部相关工作内容，以及其他为完成本招标工程施工范围所应承担的工作。
A5: 4. 本项目投标报价合价金额不含安全文明施工费。安全文明施工费依据承包人每月结算金额（不含税）的2%另行支付。
A6: 5. 本项目投标报价合价金额不含增值税税额。增值税依据承包人实际开具的增值税发票票面税额另行支付。
A7: 6. 本清单各子目“投标报价单价（不含税）”由投标人自行填报，且不得超过最高限价单价（不含税），每个清单子目，必须填入单价。
A8: 7. 各项目详细做法根据图纸及现场情况自行考虑。
A9: 8. 清单未尽事宜由招标方另行解释。

Sheet 工程量清单
A1: 榆林服务区劳务招标项目清单
A2: 标段编号：SG-3 | J2: 货币单位：人民币元
A3: 序号 | B3: 项目名称 | C3: 定额详述 | D3: 单位 | E3: 工程量 | F3: 承包方式 | G3: 最高限价单价 （不含税） | H3: 投标报价单价 （不含税） | I3: 投标报价合价 （不含税） | J3: 备注
A4: 1 | B4: 一、屋面防水工程 | I4: =IF(H4>G4,"报价无效",H4*E4) -> 0.00
A5: 2 | B5: 屋面防水找平层 | C5: 20厚1：2.5水泥砂浆找平层。 1.砼找平层设置分隔缝、压光。 2.八字护角处理等。 | D5: m2 | E5: =646+86.47+246.9+646+65 -> 1690.37 | F5: 劳务含材料 | G5: 22.94 | I5: =IF(H5>G5,"报价无效",H5*E5) -> 0.00 | J5: 1.防水层646m2 2.找平层646m2
A6: 3 | B6: 屋面防水卷材 | C6: 1、一遍冷底子油 2、3+4（带岩片）SBS防水卷材 | D6: m2 | E6: =646+86.47+246.9+646+65 -> 1690.37 | F6: 包工包料 | G6: 105.50 | I6: 0.00 | J6: 1.防水层646m2 2.找平层646m2
A7: 4 | B7: 二、天棚工程 | G7: 0.00 | I7: 0.00
A8: 5 | B8: 吊顶天棚-铝扣板 | C8: 1.吊顶形式、吊杆规格、高度:不上人 2.龙骨材料种类、规格、中距:U型轻钢龙骨 3.面层材料品种、规格:300*300mm铝扣板 4.压条材料种类、规格:收口条 | D8: m2 | E8: =44.7+1.6+44.7 -> 91 | F8: 包工包料 | G8: 119.27 | I8: 0.00
A9: 6 | B9: 三、涂料工程 | G9: 0.00 | I9: 0.00
A10: 7 | B10: 墙面一般抹灰 | C10: 1.底层厚度、砂浆配合比:1:2.5水泥砂浆抹灰 | D10: m2 | E10: =287.1+85.2+326.52+82.06+626.47+236.3+287.1+85.2+19.62+19.62 -> 2055.19 | F10: 包工包料 | G10: 32.11 | I10: 0.00 | J10: 墙体：腻子及抹灰287.1m2 顶棚：腻子及抹灰85.2m2
A11: 8 | B11: 内墙面喷刷涂料 | C11: 1.刮腻子要求:修补裂缝，2厚面层耐水腻子分遍刮平 2.涂料品种、喷刷遍数:乳胶漆饰面，底漆一遍，面漆一遍。 | D11: m2 | E11: =40+287.1+326.52+626.47+287.1 -> 1567.19 | F11: 包工包料 | G11: 27.52 | I11: 0.00 | J11: 墙体及顶棚墙面乳胶漆40m2
A12: 9 | B12: 天棚喷刷涂料 | C12: 1.喷刷涂料部位:现浇混凝土板底面清理干净 2.刮腻子要求:2-3厚柔韧性腻子分遍刮平 3.涂料品种、喷刷遍数:乳胶漆饰面，底漆一遍，面漆一遍。 | D12: m2 | E12: =85.2+82.06+236.3+85.2 -> 488.76 | F12: 包工包料 | G12: 29.36 | I12: 0.00
A13: 10 | B13: 四、外墙工程 | G13: 0.00 | I13: 0.00
A14: 11 | B14: 外墙抹灰 | C14: 15厚1:3水泥砂浆找平（内掺5％防水剂）； | D14: m2 | E14: =260.68+665.33+394.94+175.42 -> 1496.37 | F14: 包工包料 | G14: 32.11 | I14: 0.00 | J14: 1.真石漆、抹灰及保温层260.68m2（高度暂按4.9m计算）
A15: 12 | B15: 外墙保温 | C15: 100mm厚挤塑聚苯板保温层，配套胶粘剂黏粘，辅锚栓固定,三灰两网（容重≥30kg/m3,品牌符合要求） | D15: m2 | E15: =260.68+665.33+394.94+175.42 -> 1496.37 | F15: 包工包料 | G15: 110.09 | I15: 0.00
A16: 13 | B16: 外墙面涂料 （新做） | C16: 1.刮腻子要求:配套基层饰面按厂家要求，二遍外墙腻子 2.涂料品种、喷刷遍数:真石漆主层涂料，真石漆面层涂料两遍 | D16: m2 | E16: =260.68+665.33+394.94+175.42 -> 1496.37 | F16: 包工包料 | G16: 91.74 | I16: 0.00
A17: 14 | B17: 外墙面涂料 （在原基层做） | C17: 1.基层清理，刷界面剂一道 2.腻子种类:5厚聚合物抗裂砂浆复合耐碱网布找平（应达到聚合物防水砂浆性能指标要求，兼做防水保护层） 3.刮腻子要求:配套基层饰面按厂家要求，二遍外墙腻子 4.涂料品种、喷刷遍数:真石漆主层涂料，真石漆面层涂料两遍 | D17: m2 | E17: =537.57+188.94+542.25 -> 1268.76 | F17: 包工包料 | G17: 110.09 | I17: 0.00 | J17: 1.铲除原有墙体饰面层到基层墙体 537.57m2 2.15厚1；3水泥砂浆找平537.57m2 3.配套基层饰面按厂家要求 4.真石漆主层涂料537.57m2 5.真石漆面层涂料两遍537.57m2
A18: 15 | B18: 五、墙地面块料部分 | G18: 0.00 | I18: 0.00
A19: 16 | B19: 300*300mm楼地面铺贴-（不含块料材料价格） | C19: 1.500mm回填素土夯实 2.150厚碎石灌M5水泥砂浆 3.60厚C15混凝土垫层 4.素水泥砂浆一道 5.最薄处20厚1:3水泥砂浆找坡层抹平 6.1.5厚聚氨酯防水涂料 7.20mm水泥砂浆保护层 8.30厚1:3干硬性水泥砂浆 9.8-10厚地砖铺实拍平，稀水泥浆擦缝 | D19: m2 | E19: =44.7+1.6+44.7 -> 91 | F19: 包工包料 | G19: 183.49 | I19: =IF(H19>G19,"报价无效",H19*E19) -> 0.00
A20: 17 | B20: 300*600mm墙砖铺贴- （不含块料材料价格） | C20: 1、2厚配套专用界面剂砂浆批刮。 2、7厚1:1:6水泥石灰砂浆。 3、6厚1:0.5:2.5水泥石灰砂浆。 4、配套专用胶粘剂。 5、5~7厚瓷砖（粘贴前浸水两小时以上），白水泥勾缝。 | D20: m2 | E20: =325.17+25.28+325.17 -> 675.62 | F20: 包工包料 | G20: 110.09 | I20: =IF(H20>G20,"报价无效",H20*E20) -> 0.00
A21: 18 | B21: 石材窗台板 | C21: 1.窗台板材质、规格（200-300mm宽）、颜色:天然石材窗台板（含磨边及倒角） | D21: m | E21: 19.8 | F21: 包工包料 | G21: 110.09 | I21: 0.00 | J21: 利旧
A22: 19 | B22: 六、隔断类 | G22: 0.00 | I22: 0.00
A23: 20 | B23: 玻璃隔断 | C23: 1.安全玻璃隔断 ① 有框玻璃应使用符合《安全玻璃最大使用面积》规定，且厚度≥5mm的钢化玻璃或厚度≥6.38mm的夹层玻璃。 ② 无框玻璃应使用符合规定、且公称厚度≥10mm的钢化玻璃。 | D23: m2 | E23: 13.4 | F23: 包工包料 | G23: 366.97 | I23: 0.00
A24: 21 | B24: 七、卫生间配件 | G24: 0.00 | I24: 0.00
A25: 22 | B25: 洗漱柜 | C25: 1.成品洗漱柜（暂按800mm高） | D25: m2 | E25: =9+9+1 -> 19 | F25: 包工包料 | G25: 1055.05 | I25: 0.00
A26: 23 | B26: 成品隔断 | C26: 1.成品厕浴隔断 | D26: m2 | E26: =38+38 -> 76 | F26: 包工包料 | G26: 183.49 | I26: 0.00
A27: 24 | B27: 成品卫生间 | C27: 1.成品卫生间（3M*6M，4个坑位和2个洗手池，男卫小便斗） | D27: 个 | E27: 2 | F27: 包工包料 | G27: 19266.06 | I27: 0.00
A28: 25 | B28: 砌筑蹲位地台 | C28: 1.新砌筑蹲位，红砖砌筑及水泥砂浆抹灰 2.地台：高200（按照坑位算） | D28: m3 | E28: =6.8+6.8 -> 13.6 | F28: 包工包料 | G28: 642.20 | I28: 0.00
A29: 26 | B29: 镜子 | C29: 自动除雾 | D29: m2 | E29: 8.64 | F29: 包工包料 | G29: 183.49 | I29: =IF(H29>G29,"报价无效",H29*E29) -> 0.00
A30: 27 | B30: 八、门窗 | G30: 0.00 | I30: =IF(H30>G30,"报价无效",H30*E30) -> 0.00
A31: 28 | B31: 金属（断桥）窗 | C31: 1.规格、颜色:60系列断桥铝合金普通窗户玻璃选用5mm高透光LOW-E（外侧）+12A+5mm普通玻璃、纱窗（普通玻璃、钢化玻璃） 2、面积小于等于2m2采用安全玻璃及手撕纱均已经包含在窗户综合单价中，不再另行计取； 3、2*4方钢副框 4、规格尺寸：1500*2100mm、1800*2100mm、1800*1800mm、1800*1500mm、1800*2300mm、1000*1200mm、550*950mm、700*700mm等； 5、窗框内腔全部注胶； | D31: m2 | E31: =2.04*2.04*5+2.02*2.04*6+1.74*2.02*12+1.74*2.04*11+1.74*1.75+0.84*0.86*4+1.8*1.8*11+2.4*2.1 -> 173.3706 | F31: 包工包料 | G31: 733.94 | I31: 0.00 | J31: 室外窗户（2040*2040）：5樘 室外窗户（2040*2020）：6樘 室外窗户（1740*2020）：12樘 室外窗户（1740*2040）：11樘 室外窗户（1740*1750）：1樘 室外窗户（840*860）：4樘 室外窗户（1800*1800）：11樘 室外窗户（2400*2100）：1樘
A32: 29 | B32: 铝合金门 | C32: 1.铝合金门(1200*2400) | D32: m2 | E32: 2.88 | F32: 包工包料 | G32: 733.94 | I32: 0.00 | J32: 铝合金门(1200*2400) 铝合金门（1000*2100）
A33: 30 | B33: 门斗 | C33: 外门：4樘，2400*3000（包含门斗内门2樘） 门斗：2间（每间：1450*3600，高3450） | D33: m2 | E33: 39.24 | F33: 包工包料 | G33: 733.94 | I33: 0.00
A34: 31 | B34: 门斗 | C34: 2.安装铝合金门(2400*2700)：2樘 3.安装玻璃隔断防寒门斗（2800*1150） | D34: m2 | E34: 16.18 | F34: 包工包料 | G34: 733.94 | I34: 0.00
A35: 32 | B35: 九、安装工程 | G35: 0.00 | I35: 0.00
A36: 33 | B36: 给水管 | C36: 1.规格:DN20PPR管 2.做强度和压力实验 | D36: m | E36: 20.6 | G36: 30.28 | I36: 0.00
A37: 34 | B37: 给水管 | C37: 1.规格:DN25PPR管 2.做强度和压力实验 | D37: m | E37: 1 | G37: 32.11 | I37: =IF(H37>G37,"报价无效",H37*E37) -> 0.00
A38: 35 | B38: 给水管 | C38: 1.规格:DN32PPR管 2.做强度和压力实验 | D38: m | E38: 41.3 | G38: 34.86 | I38: =IF(H38>G38,"报价无效",H38*E38) -> 0.00
A39: 36 | B39: 给水管 | C39: 1.规格:DN50PPR管 2.做强度和压力实验 | D39: m | E39: 20 | G39: 91.74 | I39: 0.00
A40: 37 | B40: 配管 | C40: JDG32 | D40: 米 | E40: 1 | G40: 22.94 | I40: 0.00
A41: 38 | B41: 污水管安装 | C41: PVC DN50 | D41: 米 | E41: 286 | F41: 包工包料 | G41: 41.28 | I41: 0.00
A42: 39 | B42: DN100铸铁管 | C42: 1.安装部位:埋地，出屋面 2.介质:污水 3.材质、规格:排水DN110铸铁管 4.连接形式:法兰盘式接口 5.压力试验及吹、洗设计要求: 6.其它详见施工图纸并符合相关规范要求 | D42: m | E42: 13 | F42: 包工包料 | G42: 100.92 | I42: 0.00
A43: 40 | B43: 钢管-暖气支管 | C43: 1.规格、压力等级:PVC管DN20 | D43: m | E43: =40+164 -> 204 | F43: 包工包料 | G43: 30.28 | I43: =IF(H43>G43,"报价无效",H43*E43) -> 0.00
A44: 41 | B44: 钢管-暖气支管 | C44: 1.规格、压力等级:PVC管DN25 | D44: m | E44: 168 | F44: 包工包料 | G44: 36.70 | I44: 0.00
A45: 42 | B45: 排水管 | C45: PVC管 规格DN50 | D45: m | E45: 15 | F45: 包工包料 | G45: 41.28 | I45: 0.00
A46: 43 | B46: 排水管 | C46: 铸铁管 规格DN100 | D46: m | E46: =30+20 -> 50 | F46: 包工包料 | G46: 100.92 | I46: 0.00
A47: 44 | B47: 排水管 | C47: 铸铁管 规格DN150 | D47: m | E47: 61.2 | F47: 包工包料 | G47: 238.53 | I47: 0.00
A48: 45 | B48: 塑料管 | C48: 1.DN110pvc雨水管 | D48: m | E48: =31.5+20+7.2+30+10+11.7+50+16-0.8+17.4 -> 193 | F48: 包工包料 | G48: 55.05 | I48: 0.00
A49: 46 | B49: 雨水落水斗 | C49: 塑料落水斗 | D49: 个 | E49: =5+4+19+3 -> 31 | F49: 包工包料 | G49: 28.44 | I49: 0.00
A50: 47 | B50: 铸铁散热器 | C50: 1.铸铁片头柱式散热器（12片）(40*12) | D50: 组 | E50: 4 | F50: 包工包料 | G50: 651.38 | I50: 0.00
A51: 48 | B51: 铸铁散热器 | C51: 铸铁片头柱式散热器（16片） | D51: 组 | E51: 2 | F51: 包工包料 | G51: 816.51 | I51: 0.00 | J51: 利旧
A52: 49 | B52: 铸铁散热器 | C52: 1.铸铁片头柱式散热器（20片） | D52: 组 | E52: 18 | F52: 包工包料 | G52: 981.65 | I52: 0.00
A53: 50 | B53: 铸铁散热器 | C53: 1.铸铁片头柱式散热器（25片） | D53: 组 | E53: =5+4+2 -> 11 | F53: 包工包料 | G53: 1188.07 | I53: 0.00
A54: 51 | B54: 十四、其它工程 | G54: 0.00 | I54: 0.00
A55: 52 | B55: 开挖土方 | C55: 1、人工开挖土方 | D55: m3 | E55: 25 | F55: 包工包料 | G55: 27.52 | I55: 0.00
A56: 53 | B56: 回填方 | C56: 1.回填素土（人工夯实） | D56: m3 | E56: 25 | F56: 包工包料 | G56: 36.70 | I56: 0.00 | J56: 房间内，机械运土，人工配合夯实
A57: 54 | B57: 回填方 | C57: 1.回填中粗砂（人工夯实） | D57: m3 | E57: 8.6 | F57: 包工包料 | G57: 128.44 | I57: =IF(H57>G57,"报价无效",H57*E57) -> 0.00
A58: 55 | B58: 实心砖墙 | C58: 1.墙体类型:砌筑240mm实心砖墙 | D58: m3 | E58: 1.96 | F58: 包工包料 | G58: 550.46 | I58: 0.00
A59: 56 | B59: 打井 | C59: 300米及配套井管、水泵、电缆、配电柜等 | D59: 项 | E59: 1 | F59: 包工包料 | G59: 366972.48 | I59: 0.00
A60: 57 | B60: 临时卫生间辅助工作 | C60: 1.砖砌台阶及抹灰：0.3m³（1200*800*300） 2.10层面厚豆石铺路2.4*20m2 | D60: 项 | E60: 1 | F60: 包工包料 | G60: 4587.16 | I60: 0.00
A61: 58 | B61: 十五、拆除工程（含垃圾外运） | G61: 0.00 | I61: 0.00
A62: 59 | B62: 拆除勒脚 | C62: 1.名称：拆除勒脚 | D62: m2 | E62: =1.6+4.5+0.72+7.86+4.5 -> 19.18 | F62: 轻包 | G62: 14.68 | I62: 0.00
A63: 60 | B63: 拆除玻璃门斗 | C63: 1.拆除门窗洞口尺寸：玻璃门斗 | D63: m2 | E63: 22.5 | F63: 轻包 | G63: 22.94 | I63: 0.00 | J63: 外门：4樘，2400*3000（包含门斗内门2樘） 门斗：2间（每间：1450*3600，高3450）
A64: 61 | B64: 拆除厕浴隔断 | C64: 1.名称：厕浴隔断拆除 | D64: m2 | E64: =38+38 -> 76 | F64: 轻包 | G64: 7.34 | I64: 0.00 | J64: 1.隔板：38间+38间
A65: 62 | B65: 拆除底柜 | C65: 1.名称：洗漱柜拆除 | D65: m2 | E65: =9+9 -> 18 | F65: 轻包 | G65: 16.51 | I65: 0.00
A66: 63 | B66: 洗漱台拆除 | C66: 1.名称：洗手池台面拆除 | D66: m2 | E66: 1 | F66: 轻包 | G66: 20.18 | I66: 0.00 | J66: 1、拆除洗漱台一处
A67: 64 | B67: 铲除涂料面-内墙、顶面 | C67: 1.名称：铲除内墙涂料 | D67: m2 | E67: =40+287.1+85.2+326.52+82.06+626.47+236.3+287.1+85.2 -> 2055.95 | F67: 轻包 | G67: 2.75 | I67: 0.00 | J67: 2、墙体及顶棚墙面40m2， 墙体：腻子及抹灰287.1m2 顶棚：腻子及抹灰85.2m2
A68: 65 | B68: 拆除窗台板 | C68: 1.窗台板平面尺寸:350mm宽 | D68: m | E68: 11 | F68: 轻包 | G68: 11.01 | I68: =IF(H68>G68,"报价无效",H68*E68) -> 0.00 | J68: 墙体：腻子及抹灰287.1m2 顶棚：腻子及抹灰85.2m2
A69: 66 | B69: 拆除窗套 | C69: 1.筒子板的平面尺寸:洞口2300*1800mm、2500*1800mm；板宽200mm | D69: m | E69: =56.56+209.31+5.4*11+6.6 -> 331.87 | F69: 轻包 | G69: 2.75 | I69: 0.00 | J69: 1.窗户（2230*1740）（含200窗套）：7樘。 2.窗户（2230*1650）（含200窗套）：3樘。
A70: 67 | B70: 拆除金属门窗 | C70: 1.拆除门窗洞口尺寸：铝合窗2100*2100mm、2100*1800mm、1800*1800mm、700*700mm、100*1200mm | D70: 樘 | E70: =1+15+39+1+11+1 -> 68 | F70: 轻包 | G70: 45.87 | I70: 0.00 | J70: 1.铝合金门(1200*2400)：1樘。 1.窗户（2230*1740）（含200窗套）：7樘。 2.窗户（2230*1650）（含200窗套）：3樘。 3.窗户（540*940）：2樘。 4.窗户（940*1070）：1樘。 5.窗户（2840*1650）：1樘。 6.窗户（2840*1740）1樘
A71: 68 | B71: 拆除木门窗 | C71: 1.拆除门窗洞口尺寸：木质门（1000*2100） | D71: 樘 | E71: =3+18+8 -> 29 | F71: 轻包 | G71: 39.45 | I71: 0.00 | J71: 1.木门(含门套）（1000*2100)：3樘。
A72: 69 | B72: 拆除天棚面龙骨及饰面 | C72: 1.名称：铝扣板龙骨及面层拆除 | D72: m2 | E72: =44.7+44.7 -> 89.4 | F72: 轻包 | G72: 7.34 | I72: 0.00
A73: 70 | B73: 铲除涂料面-外墙 | C73: 1.名称：铲除外墙涂料 | D73: m2 | E73: =260.68+537.57+629.5+188.94+342.55+542.25+175.42 -> 2676.91 | F73: 轻包 | G73: 2.75 | I73: 0.00 | J73: 1.外墙涂料及抹灰：260.68m2（高度暂按4.9m计算）。 1.外墙全部铲除537.57m2
A74: 71 | B74: 拆除蹲便器 | C74: 1.名称：蹲便器拆除 | D74: 套 | E74: =31+31 -> 62 | F74: 轻包 | G74: 45.87 | I74: 0.00
A75: 72 | B75: 拆除小便器 | C75: 1.名称：小便器拆除 | D75: 套 | E75: =7+7 -> 14 | F75: 轻包 | G75: 27.52 | I75: =IF(H75>G75,"报价无效",H75*E75) -> 0.00
A76: 73 | B76: 管道拆除 | C76: 1.拆除给排水雨污水管道 | D76: m | E76: =102+106+372 -> 580 | F76: 轻包 | G76: 9.17 | I76: 0.00
A77: 74 | B77: 暖气片拆除 | C77: 1.拆除暖气片 | D77: 组 | E77: =5+26+2 -> 33 | F77: 轻包 | G77: 32.11 | I77: 0.00
A78: 75 | B78: 配电箱拆除 | C78: 1.配电箱、盘、板拆除 半周长1.1m以内 | D78: 套 | E78: 1 | F78: 轻包 | G78: 50.46 | I78: 0.00
A79: 76 | B79: 拆除卫生间墙砖 | C79: 1.名称：墙砖拆除，包含抹灰层 | D79: m2 | E79: 650.34 | F79: 轻包 | G79: 14.68 | I79: 0.00
A80: 77 | B80: 拆除卫生间地砖 | C80: 1.拆除地砖，包含垫层 | D80: m2 | E80: 99.4 | F80: 轻包 | G80: 41.28 | I80: 0.00 | J80: 3.地台：高200，面积：34.02m2。
A81: 78 | B81: 屋面防水拆除 | C81: 1.拆除防水层 2.女儿墙底部0.8m高范围内保温层拆除 3.伸缩缝镀锌铁皮盖板拆除 | D81: m2 | E81: =646+86.47+246.9+646+65 -> 1690.37 | F81: 轻包 | G81: 10.09 | I81: 0.00 | J81: 1.防水层646m2 2.找平层646m2
A82: 79 | B82: 卫生间给排水管道 | D82: m | E82: 1 | F82: 轻包 | G82: 9.17 | I82: =IF(H82>G82,"报价无效",H82*E82) -> 0.00
A83: 80 | B83: 垃圾外运 | C83: 拆除工程、施工过程中产生的垃圾机械装车、外运，运距自行考虑 | D83: m3 | E83: 100 | F83: 轻包 | G83: 137.61 | I83: =IF(H83>G83,"报价无效",H83*E83) -> 0.00 | J83: 包含机械装车，垃圾外运，量以预算定额为准
A84: 投标报价合计 | I84: =SUM(I4:I83) -> 0.00
